bitfinex-derivatives/quotes_SOLF0:USTF0_20250929
["timestamp","ask_amount","ask_price","bid_price","bid_amount"]
[1759134464196,4.3071,208.9,208.84,9.00069221]
[1759134465189,124.46,208.91,208.85,1.29069221]
[1759134465792,11.7671,208.9,208.85,9.00069221]
[1759134466390,11.7671,208.9,208.86,7.71]
[1759134466796,4.3073,208.89,208.81,7.71]
[1759134466993,4.3073,208.89,208.83,1.29069221]
[1759134467290,4.3073,208.89,208.84,7.71]
[1759134467493,4.3075,208.88,208.8,145.83107026]
[1759134467690,117.0,208.91,208.77,7.88206062]
[1759134467691,74.4581,208.9,208.81,7.71]
[1759134467892,7.46,208.88,208.81,7.71]
[1759134468693,4.3081,208.85,208.81,7.71]
[1759134468886,4.3081,208.85,208.8,1.29069221]
[1759134469291,4.3081,208.85,208.81,7.71]
[1759134469496,4.3081,208.85,208.8,1.29069221]
[1759134470601,4.3081,208.85,208.81,7.71]
[1759134470893,4.3081,208.85,208.8,1.29069221]
[1759134471693,11.7681,208.85,208.81,7.71]
[1759134472090,4.3083,208.84,208.81,7.71]
[1759134472301,11.7683,208.84,208.8,9.00069221]
[1759134473798,7.46,208.82,208.78,9.00069221]
[1759134474100,4.3085,208.83,208.78,1.29069221]
[1759134474301,12.1385,208.83,208.79,7.47]
[1759134474498,12.1385,208.83,208.78,1.29069221]
[1759134475005,12.1385,208.83,208.79,7.47]
[1759134475201,7.83,208.82,208.79,7.47]
[1759134475903,7.83,208.82,208.78,8.76069221]
[1759134476206,7.83,208.82,208.79,7.47]
[1759134476595,7.83,208.82,208.78,1.29069221]
[1759134477006,7.83,208.81,208.76,14.11179324]
[1759134477206,7.83,208.81,208.77,7.47]
[1759134477400,4.3087,208.82,208.77,7.47]
[1759134477600,12.1389,208.81,208.77,7.47]
[1759134477806,7.83,208.8,208.77,7.47]
[1759134480202,4.3089,208.81,208.77,7.47]
[1759134480410,12.1385,208.83,208.77,7.47]
[1759134480598,12.1385,208.83,208.78,1.29069221]
[1759134480802,12.1385,208.83,208.79,7.47]
[1759134482608,7.83,208.82,208.79,7.47]
[1759134483511,7.83,208.81,208.77,8.76069221]
[1759134483812,7.83,208.81,208.78,7.47]
[1759134489321,4.3081,208.85,208.8,7.47]
[1759134489518,7.83,208.88,208.81,8.76069221]
[1759134489919,4.3072,208.89,208.84,7.47]
[1759134490319,12.1372,208.89,208.82,7.47]
[1759134490515,12.1372,208.89,208.84,7.47]
[1759134490718,12.1372,208.89,208.83,11.7783]
[1759134491922,12.1372,208.89,208.83,17.12940103]
[1759134493217,12.1372,208.89,208.83,11.7783]
[1759134494529,11.5867,208.92,208.84,12.0481]
[1759134494727,7.28,208.92,208.84,7.74]
[1759134495222,4.3068,208.91,208.84,7.74]
[1759134496130,4.3071,208.9,208.84,7.74]
[1759134496724,0.84291227,208.98,208.85,13.09110103]
[1759134496932,7.28,208.97,208.87,7.74]
[1759134497630,4.3062,208.94,208.87,12.0474]
[1759134497829,0.84291227,208.98,208.87,5.35110103]
[1759134497830,7.28,208.95,208.87,5.35110103]
[1759134498035,7.28,208.95,208.88,7.74]
[1759134498535,7.28,208.95,208.88,13.09110103]
[1759134498737,7.28,208.95,208.89,7.74]
[1759134499830,11.5851,208.99,208.89,4.307]
[1759134500035,11.5851,208.99,208.9,7.74]
[1759134500230,7.28,208.99,208.9,7.74]
[1759134500435,7.28,208.98,208.87,13.09110103]
[1759134500735,7.28,208.98,208.87,7.74]
[1759134501032,4.306,208.95,208.88,7.74]
[1759134502738,7.28,208.96,208.89,7.74]
[1759134503436,7.28,208.96,208.89,22.34710899]
[1759134504039,4.3065,208.93,208.86,5.35110103]
[1759134504237,7.47,208.92,208.85,17.56900103]
[1759134504640,7.47,208.92,208.85,12.2179]
[1759134505039,7.47,208.92,208.85,26.31807523]
[1759134505240,7.47,208.92,208.85,12.2179]
[1759134505541,11.7766,208.92,208.85,12.2179]
[1759134506835,4.3068,208.91,208.85,12.2179]
[1759134507038,7.47,208.92,208.85,7.91]
[1759134508644,4.307,208.9,208.84,2.01625395]
[1759134509142,7.47,208.92,208.85,7.91]
[1759134509544,4.3066,208.92,208.86,7.91]
[1759134512744,11.7769,208.91,208.85,14.39165917]
[1759134512945,11.7769,208.91,208.84,7.91]
[1759134513334,11.7769,208.91,208.85,4.3078]
[1759134513538,4.3069,208.91,208.86,7.91]
[1759134513738,4.3069,208.91,208.85,4.3078]
[1759134514239,4.3064,208.93,208.86,12.2176]
[1759134514941,7.47,208.92,208.86,12.2176]
[1759134515645,11.7767,208.92,208.86,7.91]
[1759134515944,7.47,208.92,208.86,7.91]
[1759134516538,4.307,208.9,208.85,14.1949422]
[1759134516738,7.47,208.89,208.85,7.91]
[1759134516939,4.307,208.9,208.84,4.3081]
[1759134517341,4.307,208.9,208.84,12.2181]
[1759134517846,7.47,208.91,208.85,7.91]
[1759134518347,4.307,208.9,208.85,7.91]
[1759134518944,4.307,208.9,208.84,121.1081]
[1759134519141,4.307,208.9,208.84,4.3081]
[1759134519336,4.307,208.9,208.84,121.1081]
[1759134519741,4.307,208.9,208.85,7.91]
[1759134520141,4.307,208.9,208.84,135.10706867]
[1759134520647,4.307,208.9,208.85,7.91]
[1759134520845,4.307,208.9,208.84,135.10706867]
[1759134521345,4.307,208.9,208.85,7.91]
[1759134521540,11.777,208.9,208.84,135.10706867]
[1759134521740,11.7772,208.89,208.85,7.91]
[1759134522337,4.3072,208.89,208.84,135.10706867]
[1759134522538,4.3072,208.89,208.85,7.91]
[1759134523344,4.3072,208.89,208.84,135.10706867]
[1759134523649,4.3072,208.89,208.85,7.91]
[1759134524040,4.3072,208.89,208.84,135.10706867]
[1759134524439,4.3072,208.89,208.85,7.91]
[1759134524644,4.3072,208.89,208.84,135.10706867]
[1759134525041,4.3072,208.89,208.85,7.91]
[1759134525551,4.3072,208.89,208.84,135.10706867]
[1759134525946,4.3072,208.89,208.85,7.91]
[1759134526146,4.3072,208.89,208.84,135.10706867]
[1759134526348,4.3072,208.89,208.85,7.91]
[1759134526547,4.3075,208.88,208.85,7.91]
[1759134526847,4.3075,208.88,208.84,130.79896867]
[1759134526848,67.004,208.88,208.8,144.57084369]
[1759134527146,67.004,208.88,208.77,124.69]
[1759134527147,7.47,208.85,208.77,124.69]
[1759134527347,7.47,208.85,208.77,7.91]
[1759134527552,7.47,208.85,208.77,124.69]
[1759134528654,4.3088,208.82,208.78,7.91]
[1759134528852,11.7788,208.82,208.78,7.91]
[1759134531453,11.7788,208.82,208.77,116.8]
[1759134531648,11.7788,208.82,208.78,7.91]
[1759134532655,11.7788,208.82,208.78,124.71]
[1759134533252,11.7788,208.82,208.78,7.91]
[1759134533458,4.3088,208.82,208.78,116.8]
[1759134533761,4.3088,208.82,208.79,7.91]
[1759134534463,7.47,208.86,208.79,7.91]
[1759134535558,4.3083,208.84,208.79,7.91]
[1759134535758,4.3083,208.84,208.79,8.06]
[1759134535962,4.3083,208.84,208.77,8.06]
[1759134536265,4.3083,208.84,208.78,116.82]
[1759134537463,4.3083,208.84,208.77,8.06]
[1759134537764,12.3083,208.84,208.8,8.06]
[1759134541461,4.3085,208.83,208.8,8.06]
[1759134541662,4.3085,208.83,208.79,116.82]
[1759134541861,4.3079,208.86,208.8,8.06]
[1759134542260,4.3079,208.86,208.81,116.82]
[1759134542563,4.3081,208.85,208.82,8.06]
[1759134542759,4.3081,208.85,208.81,116.82]
[1759134542959,4.3081,208.85,208.82,8.06]
[1759134543161,12.3081,208.85,208.82,8.06]
[1759134543658,12.3081,208.85,208.81,116.82]
[1759134543860,4.3081,208.85,208.81,116.82]
[1759134544056,4.3081,208.85,208.82,8.06]
[1759134544768,2.01625395,208.9,208.77,5.35110103]
[1759134544769,67.0088,208.87,208.77,5.35110103]
[1759134545069,8.0,208.84,208.78,98.18]
[1759134545270,4.309,208.81,208.77,8.06]
[1759134545468,4.309,208.81,208.77,116.82]
[1759134546068,4.309,208.81,208.78,8.06]
[1759134546272,12.3092,208.8,208.73,148.43887401]
[1759134546564,8.0,208.82,208.74,124.88]
[1759134546770,8.0,208.82,208.75,8.06]
[1759134547469,8.0,208.82,208.75,124.88]
[1759134547678,8.0,208.82,208.75,8.06]
[1759134547871,8.0,208.82,208.75,124.88]
[1759134548171,8.0,208.82,208.76,8.06]
[1759134549069,8.0,208.82,208.75,8.06]
[1759134549469,69.02975395,208.85,208.75,8.06]
[1759134549470,67.0174,208.84,208.75,124.88]
[1759134549669,8.0,208.83,208.75,124.88]
[1759134550177,67.0174,208.84,208.75,124.88]
[1759134550471,8.0,208.83,208.75,124.88]
[1759134551971,4.3095,208.78,208.73,148.43887401]
[1759134552168,4.3095,208.78,208.75,8.06]
[1759134552568,4.309,208.81,208.75,8.06]
[1759134552873,4.309,208.81,208.75,9.35172916]
[1759134553074,4.309,208.81,208.77,7.85]
[1759134553273,4.309,208.81,208.76,116.82]
[1759134553576,12.169,208.81,208.77,7.85]
[1759134554265,4.309,208.81,208.76,7.85]
[1759134554465,4.309,208.81,208.78,7.85]
[1759134555275,4.309,208.81,208.77,116.82]
[1759134555474,4.309,208.81,208.78,7.85]
[1759134557776,4.309,208.81,208.77,116.82]
[1759134558275,4.309,208.81,208.75,1.29172916]
[1759134558974,4.309,208.81,208.76,124.67]
[1759134559173,4.309,208.81,208.77,7.85]
[1759134559373,4.309,208.81,208.76,116.82]
[1759134559578,4.309,208.81,208.77,116.82]
[1759134559776,4.3084,208.83,208.8,7.85]
[1759134560274,4.3081,208.85,208.79,1.29172916]
[1759134560776,7.86,208.88,208.82,7.85]
[1759134560971,4.3078,208.86,208.81,1.29172916]
[1759134561171,4.3078,208.86,208.82,7.85]
[1759134562074,4.3078,208.86,208.81,118.11172916]
[1759134562270,4.3078,208.86,208.82,7.85]
[1759134562669,4.3078,208.86,208.81,118.11172916]
[1759134562980,4.3081,208.85,208.82,7.85]
[1759134563281,4.3081,208.85,208.81,116.82]
[1759134563483,4.3081,208.85,208.82,7.85]
[1759134563777,4.3081,208.85,208.81,116.82]
[1759134563979,4.3081,208.85,208.82,7.7]
[1759134564979,4.3081,208.85,208.81,116.82]
[1759134565182,4.3081,208.85,208.82,7.7]
[1759134565376,4.3081,208.85,208.81,116.82]
[1759134565773,4.3081,208.85,208.82,7.7]
[1759134565972,4.3081,208.85,208.81,116.82]
[1759134566277,9.07172916,208.92,208.83,7.7]
[1759134566581,7.78,208.92,208.85,7.7]
[1759134566778,4.3072,208.89,208.85,7.7]
[1759134567681,4.3072,208.89,208.84,1.29172916]
[1759134567981,4.3072,208.89,208.84,118.11172916]
[1759134568174,4.3072,208.89,208.85,7.7]
[1759134568377,12.0872,208.89,208.85,1.29172916]
[1759134568579,12.0872,208.89,208.86,7.7]
[1759134569075,4.3075,208.88,208.86,7.7]
[1759134571378,4.3075,208.88,208.84,1.29172916]
[1759134571682,4.3075,208.88,208.85,7.7]
[1759134571883,4.3075,208.88,208.86,8.99172916]
[1759134572078,4.3075,208.88,208.87,7.7]
[1759134572478,12.087,208.9,208.87,7.7]
[1759134572676,7.78,208.9,208.87,7.7]
[1759134573681,4.3073,208.89,208.87,7.7]
[1759134575479,4.3076,208.87,208.84,1.29172916]
[1759134575680,12.0876,208.87,208.84,8.99172916]
[1759134576088,12.0878,208.86,208.82,14.34283019]
[1759134576282,12.0878,208.86,208.82,8.99172916]
[1759134576487,4.3078,208.86,208.82,8.99172916]
[1759134576690,12.0878,208.86,208.82,8.99172916]
[1759134577189,4.3081,208.85,208.83,7.7]
[1759134577577,12.0883,208.84,208.82,1.29172916]
[1759134577882,12.0883,208.84,208.81,7.7]
[1759134578982,4.3083,208.84,208.81,7.7]
[1759134579182,4.3079,208.86,208.8,6.64283019]
[1759134579482,12.0879,208.86,208.82,8.99172916]
[1759134579989,7.78,208.85,208.82,8.99172916]
[1759134580283,12.088,208.85,208.82,8.99172916]
[1759134580694,12.088,208.85,208.82,7.7]
[1759134581490,7.78,208.85,208.82,7.7]
[1759134583195,7.78,208.85,208.81,1.29172916]
[1759134583390,7.78,208.85,208.82,7.7]
[1759134583892,7.78,208.85,208.81,1.29172916]
[1759134584292,1.29172916,208.91,208.81,1.29172916]
[1759134584493,1.29172916,208.91,208.82,7.7]
[1759134584494,7.78,208.9,208.82,7.7]
[1759134584694,4.3076,208.87,208.81,8.99172916]
[1759134588503,4.3076,208.87,208.81,14.34283019]
[1759134588891,12.0879,208.86,208.82,7.7]
[1759134589296,12.0879,208.86,208.81,6.64283019]
[1759134589601,4.3079,208.86,208.82,7.7]
[1759134589902,4.3079,208.86,208.81,6.64283019]
[1759134590104,4.3079,208.86,208.83,1.29172916]
[1759134590299,4.3079,208.86,208.83,8.99172916]
[1759134590498,12.0879,208.86,208.83,8.99172916]
[1759134590899,4.3079,208.86,208.83,1.29172916]
[1759134591099,4.3079,208.86,208.84,7.7]
[1759134591300,4.3079,208.86,208.83,1.29172916]
[1759134591496,4.3079,208.86,208.84,7.7]
[1759134593001,7.78,208.87,208.84,7.7]
[1759134593599,7.78,208.91,208.84,7.7]
[1759134594603,4.3077,208.87,208.84,7.7]
[1759134594907,11.8377,208.87,208.84,7.7]
[1759134595109,11.8377,208.87,208.83,1.29172916]
[1759134595503,11.8377,208.87,208.84,7.64]
[1759134598415,4.3072,208.89,208.85,1.29172916]
[1759134598616,4.3072,208.89,208.87,1.29172916]
[1759134598813,7.53,208.93,208.87,1.29172916]
[1759134599009,7.53,208.9,208.87,8.93172916]
[1759134599910,7.53,208.9,208.88,7.64]
[1759134600310,0.83849722,208.94,208.89,1.29172916]
[1759134600514,0.83849722,208.94,208.9,7.64]
[1759134600711,7.53,208.97,208.91,1.29172916]
[1759134600912,11.8355,208.97,208.91,8.93172916]
[1759134601217,7.53,208.97,208.91,8.93172916]
[1759134601515,74.5095,208.96,208.87,12.99110103]
[1759134601714,7.53,208.95,208.87,8.93172916]
[1759134602309,68.27122916,208.96,208.87,8.93172916]
[1759134602511,7.53,208.95,208.87,8.93172916]
[1759134602711,4.3071,208.9,208.87,8.93172916]
[1759134602915,11.8371,208.9,208.87,8.93172916]
[1759134603424,4.3071,208.9,208.87,8.93172916]
[1759134603612,7.53,208.88,208.85,14.28283019]
[1759134603813,4.3072,208.89,208.86,7.64]
[1759134604014,7.53,208.93,208.86,7.64]
[1759134604517,4.3068,208.91,208.86,7.64]
[1759134604823,4.3068,208.91,208.88,7.64]
[1759134606015,11.8368,208.91,208.88,7.64]
[1759134606516,4.3068,208.91,208.88,7.64]
[1759134608713,7.53,208.93,208.86,5.35110103]
[1759134609023,7.53,208.91,208.84,12.99110103]
[1759134609421,7.53,208.91,208.86,7.64]
[1759134609618,1.29172916,208.94,208.86,7.64]
[1759134609619,1.29172916,208.95,208.86,7.64]
[1759134609819,7.53,208.94,208.87,1.29172916]
[1759134610023,7.53,208.94,208.89,1.29172916]
[1759134610024,4.3062,208.94,208.89,1.29172916]
[1759134610323,7.53,208.98,208.91,1.29172916]
[1759134610524,11.836,208.95,208.91,8.93172916]
[1759134611317,11.8362,208.94,208.89,8.93172916]
[1759134611519,11.8362,208.94,208.9,7.64]
[1759134611718,7.53,208.95,208.87,1.29172916]
[1759134612717,1.29172916,208.96,208.88,7.95]
[1759134612917,7.29,208.95,208.87,1.29172916]
[1759134613223,7.29,208.93,208.86,5.35110103]
[1759134613628,4.3069,208.91,208.86,5.35110103]
[1759134613930,11.5969,208.91,208.87,7.95]
[1759134614333,7.29,208.91,208.87,7.95]
[1759134614524,7.29,208.91,208.86,5.35110103]
[1759134615028,7.29,208.91,208.87,7.95]
[1759134615220,7.29,208.91,208.86,5.35110103]
[1759134615526,7.29,208.91,208.87,7.95]
[1759134615720,4.3066,208.92,208.86,5.35110103]
[1759134615925,4.3066,208.92,208.87,7.95]
[1759134616124,4.3066,208.92,208.87,5.35110103]
[1759134616828,4.3066,208.92,208.88,7.95]
[1759134617333,7.29,208.91,208.88,7.95]
[1759134617830,7.29,208.94,208.86,7.95]
[1759134618225,4.3068,208.91,208.86,7.95]
[1759134618420,11.5968,208.91,208.86,7.95]
[1759134618625,11.5968,208.91,208.85,5.35110103]
[1759134618826,11.5968,208.91,208.85,13.30110103]
[1759134619230,11.5968,208.91,208.85,7.95]
[1759134619528,11.5968,208.91,208.85,13.30110103]
[1759134620131,11.5968,208.91,208.85,7.95]
[1759134620330,11.5968,208.91,208.85,17.60900103]
[1759134620733,4.307,208.9,208.85,7.95]
[1759134621035,4.307,208.9,208.85,5.35110103]
[1759134621230,4.307,208.9,208.86,7.95]
[1759134621529,7.29,208.91,208.86,7.95]
[1759134621734,4.3066,208.92,208.86,5.35110103]
[1759134621937,4.3066,208.92,208.88,7.95]
[1759134622133,7.29,208.96,208.88,7.95]
[1759134622134,4.3062,208.94,208.88,7.95]
[1759134623329,4.3062,208.94,208.88,13.30110103]
[1759134623636,11.5957,208.96,208.9,7.95]
[1759134624124,7.29,208.96,208.9,7.95]
[1759134625936,6.89583604,209.01,208.9,7.95]
[1759134626431,4.3058,208.96,208.9,7.95]
[1759134626631,2.01601802,209.01,208.9,7.95]
[1759134626832,2.01601802,209.01,208.9,7.84]
[1759134627133,68.98011802,209.01,208.9,7.84]
[1759134627329,4.3058,208.96,208.9,12.1468]
[1759134627927,4.3058,208.96,208.91,4.3066]
[1759134628131,8.3958,208.96,208.92,7.84]
[1759134628338,8.3958,208.96,208.91,4.3066]
[1759134628837,4.09,208.95,208.92,7.84]
[1759134629035,4.306,208.95,208.89,17.49810103]
[1759134629636,8.3962,208.94,208.9,7.84]
[1759134630140,8.3962,208.94,208.89,9.65810103]
[1759134630330,8.3962,208.94,208.9,7.84]
[1759134630531,4.3064,208.93,208.88,5.35110103]
[1759134630835,68.98531802,208.99,208.86,9.89807864]
[1759134630836,66.9753,208.97,208.86,13.19110103]
[1759134631038,4.09,208.98,208.86,17.49870103]
[1759134631238,4.09,208.98,208.87,7.84]
[1759134631541,4.3062,208.94,208.87,7.84]
[1759134631838,4.3062,208.94,208.88,7.84]
[1759134632035,4.3058,208.96,208.88,7.84]
[1759134633239,4.3058,208.96,208.89,7.84]
[1759134633642,4.09,208.98,208.89,12.147]
[1759134633841,71.0571,209.0,208.89,12.147]
[1759134634043,66.9671,209.0,208.89,12.147]
[1759134634342,4.306,208.95,208.89,12.147]
[1759134634536,4.09,208.97,208.89,12.147]
[1759134634732,4.09,208.97,208.89,7.84]
[1759134635043,66.9718,208.98,208.89,7.84]
[1759134635544,8.3966,208.92,208.89,7.84]
[1759134637743,4.09,208.92,208.89,7.84]
[1759134637938,4.09,208.93,208.89,7.84]
[1759134638544,4.09,208.93,208.87,9.65860103]
[1759134638737,4.09,208.93,208.87,17.49860103]
[1759134639646,4.09,208.93,208.88,5.35110103]
[1759134639944,8.3964,208.93,208.89,7.84]
[1759134640541,4.3064,208.93,208.88,5.35110103]
[1759134640739,4.3064,208.93,208.89,7.84]
[1759134641040,4.306,208.95,208.89,7.84]
[1759134641344,4.09,208.96,208.89,7.84]
[1759134641542,4.09,208.96,208.89,13.19110103]
[1759134641945,4.09,208.96,208.89,7.84]
[1759134642247,4.09,208.96,208.89,13.19110103]
[1759134642543,8.3958,208.96,208.89,13.19110103]
[1759134643438,4.306,208.95,208.89,13.19110103]
[1759134644446,4.306,208.95,208.89,7.84]
[1759134645744,4.3063,208.94,208.89,7.84]
[1759134646050,66.969,208.99,208.88,5.35110103]
[1759134646051,68.99081802,208.98,208.88,5.35110103]
[1759134646348,68.99081802,208.98,208.87,5.35110103]
[1759134646349,4.09,208.97,208.87,5.35110103]
[1759134646549,4.09,208.97,208.87,13.19110103]
[1759134647045,68.99081802,208.98,208.87,13.19110103]
[1759134647246,4.09,208.97,208.87,13.19110103]
[1759134647452,68.99081802,208.98,208.87,13.19110103]
[1759134647648,4.3065,208.93,208.87,13.19110103]
[1759134649550,4.3066,208.92,208.87,13.19110103]
[1759134649754,4.09,208.91,208.88,7.84]
[1759134650057,68.99741802,208.95,208.86,5.35110103]
[1759134650652,8.3973,208.89,208.86,13.19110103]
[1759134650955,8.3973,208.89,208.86,7.84]
[1759134651156,4.09,208.88,208.86,7.84]
[1759134651459,4.09,208.88,208.85,5.35110103]
[1759134651759,8.3974,208.88,208.85,5.35110103]
[1759134652062,4.09,208.93,208.85,5.35110103]
[1759134652359,4.09,208.97,208.87,7.84]
[1759134652558,4.09,208.97,208.88,7.84]
[1759134653160,4.3062,208.94,208.88,7.84]
[1759134653360,4.3062,208.94,208.89,7.84]
[1759134653558,4.3062,208.94,208.88,5.35110103]
[1759134653760,4.3062,208.94,208.89,7.84]
[1759134653959,4.3062,208.94,208.89,7.39]
[1759134654362,4.3062,208.94,208.88,5.35110103]
[1759134654865,4.3064,208.93,208.88,5.35110103]
[1759134655161,66.9752,208.97,208.88,5.35110103]
[1759134655460,4.07,208.95,208.86,12.74110103]
[1759134655658,68.99431802,208.96,208.86,12.74110103]
[1759134655858,4.07,208.95,208.86,12.74110103]
[1759134656053,4.07,208.9,208.86,12.74110103]
[1759134656258,4.07,208.92,208.85,5.35110103]
[1759134656462,4.3075,208.88,208.85,5.35110103]
[1759134656662,8.3775,208.88,208.85,5.35110103]
[1759134657360,8.3775,208.88,208.83,7.39]
[1759134657361,4.3075,208.88,208.84,5.35110103]
[1759134657564,4.3075,208.88,208.85,7.39]
[1759134657758,4.3075,208.88,208.84,5.35110103]
[1759134657959,4.3075,208.88,208.85,7.39]
[1759134658758,4.3075,208.88,208.84,5.35110103]
[1759134659763,4.3075,208.88,208.85,7.39]
[1759134660856,8.3775,208.88,208.85,7.39]
[1759134661261,8.3775,208.88,208.84,7.39]
[1759134662067,4.3075,208.88,208.84,7.39]
[1759134662268,4.3075,208.88,208.83,5.35110103]
[1759134662562,4.3075,208.88,208.84,7.39]
[1759134663367,4.3075,208.88,208.83,5.35110103]
[1759134663668,8.3775,208.88,208.84,7.39]
[1759134664871,4.3077,208.87,208.84,7.39]
[1759134665574,8.3777,208.87,208.83,5.35110103]
[1759134665970,8.3777,208.87,208.84,7.39]
[1759134667569,4.07,208.9,208.82,12.74110103]
[1759134667772,67.0071,208.87,208.79,5.35110103]
[1759134668167,4.07,208.86,208.78,12.74110103]
[1759134668466,4.3088,208.82,208.78,7.39]
[1759134668866,4.3088,208.82,208.77,5.35110103]
[1759134669269,4.3088,208.82,208.78,7.39]
[1759134669669,4.07,208.84,208.76,5.35110103]
[1759134669867,71.0872,208.84,208.76,5.35110103]
[1759134670363,71.0872,208.84,208.75,12.74110103]
[1759134670970,4.07,208.83,208.75,12.74110103]
[1759134671375,4.07,208.82,208.75,12.74110103]
[1759134671572,4.07,208.82,208.75,7.39]
[1759134672076,4.3093,208.79,208.74,5.35110103]
[1759134672277,4.07,208.82,208.75,7.39]
[1759134673072,4.3092,208.8,208.74,7.73]
[1759134673273,4.1,208.81,208.74,7.73]
[1759134673575,67.0219,208.83,208.73,5.35110103]
[1759134673878,4.1,208.81,208.72,13.08110103]
[1759134674684,4.3098,208.77,208.73,7.73]
[1759134675180,4.3098,208.77,208.72,5.35110103]
[1759134675481,4.3092,208.79,208.72,5.35110103]
[1759134675683,4.3092,208.79,208.73,7.73]
[1759134676075,4.3092,208.79,208.73,13.08110103]
[1759134676271,4.3092,208.79,208.73,9.02172407]
[1759134677381,4.3095,208.78,208.73,1.29172407]
[1759134677582,8.4095,208.78,208.74,7.73]
[1759134678287,8.4095,208.78,208.71,6.6428251]
[1759134678486,8.4095,208.78,208.72,7.73]
[1759134679082,4.3098,208.77,208.71,6.6428251]
[1759134679887,4.3098,208.77,208.72,7.73]
[1759134680185,4.3098,208.77,208.71,6.6428251]
[1759134680583,4.1,208.76,208.72,7.73]
[1759134680783,4.1,208.77,208.69,7.73]
[1759134681082,4.1,208.77,208.69,13.08110103]
[1759134681083,4.3099,208.76,208.69,13.08110103]
[1759134681384,4.3099,208.76,208.69,7.73]
[1759134681586,4.3099,208.76,208.7,1.29172407]
[1759134682380,4.3099,208.76,208.71,7.73]
[1759134682686,4.3099,208.76,208.7,5.60272407]
[1759134684087,4.3099,208.76,208.71,7.86]
[1759134684283,8.3699,208.76,208.7,5.60272407]
[1759134684489,8.3699,208.76,208.7,13.46272407]
[1759134685293,4.3095,208.78,208.71,7.86]
[1759134686287,4.3095,208.78,208.72,1.29172407]
[1759134686493,4.3098,208.77,208.71,7.86]
[1759134687603,4.06,208.79,208.71,7.86]
[1759134687790,4.06,208.77,208.71,7.86]
[1759134687985,4.06,208.77,208.67,156.92552236]
[1759134687986,4.06,208.75,208.67,156.92552236]
[1759134688787,4.06,208.75,208.67,7.86]
[1759134689188,4.3103,208.74,208.67,7.86]
[1759134689394,4.06,208.75,208.67,9.15172407]
[1759134689588,1.29172407,208.78,208.67,9.15172407]
[1759134689796,1.29172407,208.78,208.7,7.86]
[1759134690597,4.3101,208.75,208.7,7.86]
[1759134690800,4.3101,208.75,208.69,1.29172407]
[1759134691199,4.3101,208.75,208.69,9.15172407]
[1759134692801,4.3097,208.77,208.71,1.29172407]
[1759134693102,4.3097,208.77,208.74,7.86]
[1759134693691,4.3097,208.77,208.72,1.29172407]
[1759134693896,4.3097,208.77,208.73,7.86]
[1759134694098,4.3093,208.79,208.73,7.86]
[1759134694499,4.3093,208.79,208.74,1.29172407]
[1759134694701,4.3093,208.79,208.75,7.86]
[1759134695700,4.3093,208.79,208.74,1.29172407]
[1759134696006,4.3093,208.79,208.75,7.86]
[1759134696199,4.3093,208.79,208.74,1.29172407]